bitfinex-derivatives/quotes_ETHF0:USTF0_20250326
["timestamp","ask_amount","ask_price","bid_price","bid_amount"]
[1743025129091,0.99975,2000.3,2000.2,7.38445]
[1743025129291,4.2123301,2000.4,2000.3,0.99973]
[1743025129491,0.0048401,2000.4,2000.3,6.00933]
[1743025129692,1.0045201,2000.4,2000.3,6.00933]
[1743025130079,0.0048401,2000.4,2000.3,6.00933]
[1743025130596,0.0048401,2000.4,2000.3,9.97333]
[1743025130786,0.9996,2000.6,2000.5,0.99963]
[1743025131088,4.20736,2000.7,2000.6,0.99958]
[1743025131488,0.99963,2000.5,2000.4,1.3559]
[1743025131989,0.99973,2000.3,2000.2,0.00750375]
[1743025132193,4.20753,2000.3,2000.2,0.00750375]
[1743025133592,4.20753,2000.3,2000.2,5.01710375]
[1743025136693,0.99973,2000.3,2000.2,8.95410375]
[1743025136894,0.9997,2000.4,2000.2,8.95410375]
[1743025137097,0.99964,2000.5,2000.4,0.99965]
[1743025137287,0.99968,2000.4,2000.3,46.80929]
[1743025137486,0.99966,2000.5,2000.4,6.00926]
[1743025137993,0.99966,2000.5,2000.4,5.0096]
[1743025138195,0.99966,2000.5,2000.4,6.00928]
[1743025139000,0.9996,2000.6,2000.5,0.99959]
[1743025139295,0.9996,2000.6,2000.5,5.0096]
[1743025140189,0.9996,2000.6,2000.5,6.4187]
[1743025141498,0.99968,2000.4,2000.3,3.919]
[1743025141692,0.99968,2000.4,2000.3,11.29461]
[1743025141998,0.99968,2000.4,2000.3,16.30421]
[1743025142199,0.99968,2000.4,2000.3,6.4187]
[1743025142502,0.99973,2000.3,2000.2,0.00750375]
[1743025142695,1.00008,1999.6,1999.5,3.2078]
[1743025142886,1.00008,1999.6,1999.5,5.96651]
[1743025143093,1.00008,1999.6,1999.5,10.97611]
[1743025143996,1.00008,1999.6,1999.5,5.0096]
[1743025144400,2.31238,1999.6,1999.5,5.0096]
[1743025145797,1.00013,1999.5,1999.4,0.00750375]
[1743025145996,5.55723,1999.5,1999.4,3.75e-06]
[1743025146503,8.05723,1999.5,1999.4,3.75e-06]
[1743025146998,13.88723,1999.5,1999.4,3.75e-06]
[1743025147388,14.9963231,1999.5,1999.4,3.75e-06]
[1743025148698,20.40830522,1999.5,1999.4,3.75e-06]
[1743025149203,1.00063,1998.5,1998.4,1.3645]
[1743025149495,4.20843,1998.5,1998.4,1.3645]
[1743025149697,4.20843,1998.5,1997.9,50.424]
[1743025149698,1.00088,1998.0,1997.9,50.424]
[1743025150003,1.00088,1998.0,1997.9,56.39051]
[1743025150204,1.00088,1998.0,1997.9,61.40011]
[1743025152004,1.00088,1998.0,1997.9,10.97611]
[1743025152206,0.00750375,1998.1,1997.8,0.00750375]
[1743025152207,1.00093,1997.9,1997.8,0.00750375]
[1743025152409,2.40143,1997.9,1997.8,5.97401375]
[1743025152606,2.40143,1997.9,1997.2,3.9096]
[1743025152607,1.00123,1997.3,1997.2,3.9096]
[1743025152911,1.00123,1997.3,1997.2,9.87611]
[1743025153206,1.00123,1997.3,1997.2,0.7018]
[1743025153608,1.00123,1997.3,1997.2,41.5018]
[1743025154006,1.00123,1997.3,1997.2,42.934]
[1743025154605,1.00123,1997.3,1997.2,48.90051]
[1743025155814,1.00123,1997.3,1997.2,48.19871]
[1743025157016,1.00123,1997.3,1997.2,42.2322]
[1743025157217,1.00121,1997.4,1997.2,46.44128]
[1743025157418,1.00121,1997.4,1997.2,45.44]
[1743025157619,1.00121,1997.4,1997.2,46.44128]
[1743025158414,3.2078,1997.7,1997.2,45.44]
[1743025158720,1.00123,1997.3,1997.2,45.44]
[1743025158919,1.00123,1997.3,1997.2,49.312]
[1743025159312,1.00121,1997.4,1997.2,50.31328]
[1743025159519,1.00121,1997.4,1997.3,0.6626]
[1743025159718,1.00121,1997.4,1997.3,1.66383]
[1743025160120,1.00121,1997.4,1997.3,42.46383]
[1743025160321,1.00121,1997.4,1997.3,41.4626]
[1743025161323,1.00121,1997.4,1997.3,42.46383]
[1743025161716,1.00116,1997.5,1997.3,41.4626]
[1743025161918,1.00116,1997.5,1997.4,1.323]
[1743025166324,5.00516,1997.7,1997.4,1.323]
[1743025166529,1.00117,1997.5,1997.4,1.323]
[1743025166730,1.0011,1997.6,1997.5,1.0011]
[1743025167424,2.5023,1998.0,1997.5,5.71053]
[1743025167628,1.00101,1997.8,1997.7,1.00099]
[1743025167820,5.71739375,1998.1,1997.8,1.00093]
[1743025167821,1.00095,1997.9,1997.8,1.00093]
[1743025170026,1.54649375,1998.4,1997.8,5.00241]
[1743025170232,1.00078,1998.3,1998.2,1.00073]
[1743025170530,2.50145,1998.6,1998.3,1.00069]
[1743025170726,1.00063,1998.5,1998.4,5.60106]
[1743025171432,1.00811375,1998.6,1998.5,1.00063]
[1743025171739,1.00811375,1998.6,1998.5,6.21023]
[1743025172032,0.00750375,1998.6,1998.5,47.01023]
[1743025172629,1.00056,1998.7,1998.6,1.00053]
[1743025172936,1.00043,1999.0,1998.9,1.00041]
[1743025173431,7.12755,1999.4,1998.8,7.0188]
[1743025173625,1.00035,1999.1,1999.0,1.00034]
[1743025174029,1.00031,1999.2,1999.1,1.0003]
[1743025174223,1.00776375,1999.3,1999.2,1.00028]
[1743025174539,0.00750375,1999.3,1999.2,2.35958]
[1743025174826,7.12708,1999.8,1999.4,1.00012]
[1743025175027,2.49994,1999.8,1999.5,1.3593]
[1743025175233,1.00008,1999.6,1999.5,1.3593]
[1743025175433,1.00005,1999.7,1999.6,1.00006]
[1743025176431,0.99995,1999.9,1999.8,0.99994]
[1743025176734,0.99979,2000.2,1999.8,3.2078]
[1743025176934,0.99981,2000.2,2000.1,0.99982]
[1743025177139,0.99976,2000.3,2000.2,0.99977]
[1743025177331,3.2078,2000.4,2000.1,1.3563]
[1743025177538,0.99978,2000.2,2000.1,43.15609]
[1743025177927,0.99978,2000.2,2000.1,2.35609]
[1743025178440,0.99978,2000.2,2000.1,43.15609]
[1743025178939,0.99978,2000.2,2000.1,5.1473]
[1743025180935,0.99978,2000.2,2000.1,1.3563]
[1743025182039,2.39566,2000.3,2000.1,2.35612]
[1743025182332,0.99976,2000.3,2000.1,2.35612]
[1743025182536,0.99976,2000.3,2000.1,0.99982]
[1743025182932,4.20751,2000.4,2000.2,0.99978]
[1743025183133,3.2078,2000.4,2000.0,6.9898]
[1743025183337,4.20749,2000.4,2000.2,0.99976]
[1743025183539,4.20749,2000.4,1999.8,2.49991]
[1743025183540,0.99985,2000.1,1999.9,0.99991]
[1743025183730,0.99987,2000.0,1999.8,8.04575]
[1743025183930,3.85606,2000.3,1999.8,7.0458]
[1743025184139,3.85606,2000.3,1999.8,8.04574]
[1743025184332,0.99989,2000.0,1999.8,8.04574]
[1743025184531,0.99989,2000.0,1999.9,0.99992]
[1743025184734,0.99985,2000.1,1999.9,0.99992]
[1743025185127,0.99986,2000.1,1999.9,0.99992]
[1743025185936,0.99986,2000.1,2000.0,0.99987]
[1743025188440,0.99969,2000.4,2000.3,0.99973]
[1743025188641,2.34967,2000.5,2000.3,3.817]
[1743025188842,0.99967,2000.5,2000.4,0.99968]
[1743025189236,0.99963,2000.5,2000.4,0.99968]
[1743025189548,0.99961,2000.6,2000.5,0.99963]
[1743025189938,0.99959,2000.6,2000.5,0.99961]
[1743025190239,0.99958,2000.6,2000.5,3.2078]
[1743025190639,0.99958,2000.6,2000.5,4.20743]
[1743025191143,0.99958,2000.6,2000.5,4.20741]
[1743025191338,1.35,2000.8,2000.5,3.2078]
[1743025191542,1.35,2000.8,2000.6,0.99957]
[1743025191946,1.35,2000.8,2000.5,4.20739]
[1743025192344,1.35,2000.8,2000.6,0.99957]
[1743025192739,1.35,2000.8,2000.7,0.99953]
[1743025192938,3.2078,2000.9,2000.7,0.99953]
[1743025193445,3.2078,2000.9,2000.8,0.99948]
[1743025193741,3.2078,2000.9,2000.7,0.99949]
[1743025193942,3.2078,2000.9,2000.6,3.798]
[1743025194144,3.2078,2000.9,2000.7,0.99949]
[1743025194439,1.3251,2000.8,2000.5,3.21530375]
[1743025194641,1.3251,2000.8,2000.5,0.00750375]
[1743025198754,2.32458,2000.8,2000.5,0.00750375]
[1743025198946,1.3251,2000.8,2000.5,0.00750375]
[1743025200246,0.99965,2000.5,2000.0,0.99987]
[1743025200446,1.3702,2000.4,1999.8,7.0068]
[1743025200640,1.3702,2000.4,2000.0,1.4264]
[1743025200845,1.3702,2000.4,1999.8,0.99997]
[1743025201054,1.69935,2000.3,2000.0,3.2078]
[1743025201253,1.3702,2000.2,2000.0,3.2078]
[1743025201445,1.3702,2000.2,2000.0,4.6342]
[1743025201843,0.00750375,2000.4,2000.2,0.99975]
[1743025202249,0.00750375,2000.4,2000.3,1.4264]
[1743025202951,1.37770375,2000.4,2000.3,1.4264]
[1743025203155,2.37738375,2000.4,2000.3,1.4264]
[1743025203356,1.37770375,2000.4,2000.3,1.4264]
[1743025203959,2.37738375,2000.4,2000.3,1.4264]
[1743025204159,1.37770375,2000.4,2000.3,1.4264]
[1743025204351,2.37738375,2000.4,2000.3,1.4264]
[1743025204552,1.37770375,2000.4,2000.3,1.4264]
[1743025205456,0.99975,2000.3,2000.0,2.41266]
[1743025205758,1.3452,2000.2,2000.0,2.41266]
[1743025205953,0.99975,2000.3,2000.1,0.99982]
[1743025206156,2.34495,2000.3,2000.2,1.4128]
[1743025207355,0.99987,2000.0,1999.9,50.43050375]
[1743025207551,0.99987,2000.0,1999.9,51.82900375]
[1743025207856,0.99987,2000.0,1999.9,92.62900375]
[1743025208359,0.99987,2000.0,1999.9,93.62892375]
[1743025209444,0.99987,2000.0,1999.9,92.62900375]
[1743025211747,0.99987,2000.0,1999.9,93.62892375]
[1743025214661,0.99987,2000.0,1999.9,96.83672375]
[1743025217250,0.99987,2000.0,1999.9,46.41372375]
[1743025218558,0.99981,2000.2,2000.1,0.99978]
[1743025218767,0.99978,2000.2,2000.1,0.99981]
[1743025218955,2.36287,2000.3,2000.2,0.99978]
[1743025219264,0.99977,2000.3,2000.2,2.39688]
[1743025219760,2.41782375,2000.4,2000.3,0.99973]
[1743025219960,2.41781375,2000.4,2000.3,0.99973]
[1743025220763,1.00721375,2000.4,2000.3,0.99973]
[1743025221563,0.00750375,2000.4,2000.3,0.99973]
[1743025221955,1.00718375,2000.4,2000.3,0.99973]
[1743025222955,0.00750375,2000.4,2000.3,0.99973]
[1743025223456,1.00718375,2000.4,2000.3,0.99973]
[1743025223656,0.00750375,2000.4,2000.3,4.72273]
[1743025223957,14.92420452,2000.4,2000.3,4.72273]
[1743025224258,15.92388452,2000.4,2000.3,4.72273]
[1743025224957,14.92420452,2000.4,2000.3,4.72273]
[1743025225258,15.92388452,2000.4,2000.3,4.72273]
[1743025227753,14.92420452,2000.4,2000.3,4.72273]
[1743025228765,0.00750375,2000.4,2000.3,4.72273]
[1743025230362,16.78128837,2000.6,2000.5,0.99963]
[1743025230667,16.78128837,2000.6,2000.5,4.20743]
[1743025231660,1.12699945,2000.7,2000.5,12.54604452]
[1743025231868,2.39761,2001.4,2001.3,0.99923]
[1743025232166,2.39761,2001.4,2001.3,4.20703]
[1743025232468,2.39758,2001.4,2001.3,4.20703]
[1743025233066,0.99913,2001.6,2001.5,0.99908]
[1743025233261,2.39753,2001.6,2001.5,0.99908]
[1743025234268,1.3984,2001.6,2001.5,0.99908]
[1743025234968,1.3984,2001.6,2001.5,6.10638]
[1743025235168,0.999,2001.8,2001.7,0.99903]
[1743025235369,2.4068,2001.8,2001.7,0.99903]
[1743025235565,1.4078,2001.8,2001.7,0.99903]
[1743025235772,1.4078,2001.8,2001.7,2.42633]
[1743025236171,0.99895,2002.0,2001.9,0.99889]
[1743025236366,2.40675,2002.0,2001.9,0.99889]
[1743025238663,1.4078,2002.0,2001.9,4.20669]
[1743025238869,1.3854,2002.1,2002.0,0.99888]
[1743025239065,0.6821,2002.1,2002.0,2.43568]
[1743025240066,1.4293,2002.2,2002.1,0.99883]
[1743025240274,1.4293,2002.2,2002.1,4.66783]
[1743025241572,0.99876,2002.3,2002.2,0.99878]
[1743025241778,0.99873,2002.3,2002.2,1.3843]
[1743025241973,1.3533,2002.4,2002.2,2.38305]
[1743025242166,0.99863,2002.5,2002.4,0.99868]
[1743025242675,0.99853,2002.8,2002.7,0.99851]
[1743025242871,2.35183,2002.8,2002.7,4.66151]
[1743025243172,3.2078,2002.9,2002.8,0.99846]
[1743025243173,0.99848,2002.9,2002.8,0.99846]
[1743025243373,2.35268,2002.9,2002.8,2.33166]
[1743025244369,1.3542,2002.9,2002.8,2.33166]
[1743025244574,2.41486,2003.1,2003.0,0.99838]
[1743025244871,0.99836,2003.1,2003.0,4.66038]
[1743025245169,0.99836,2003.1,2002.2,53.59430375]
[1743025245170,2.49595,2003.0,2002.2,53.59430375]
[1743025245473,0.99873,2002.3,2002.2,55.39570375]
[1743025245672,0.99873,2002.3,2002.2,54.06250375]
[1743025246372,0.99873,2002.3,2002.2,0.00750375]
[1743025246581,0.99893,2001.9,2001.8,1.4338]
[1743025246776,0.99893,2001.9,2001.8,3.675]
[1743025247969,0.99898,2001.8,2001.7,6.8778]
[1743025248172,2.34388,2001.8,2001.7,6.8778]
[1743025248983,2.34388,2001.8,2001.7,8.3116]
[1743025249183,2.34388,2001.8,2001.7,9.31063]
[1743025249380,2.34388,2001.8,2001.7,8.3116]
[1743025250382,2.34388,2001.8,2001.7,3.2078]
[1743025250571,0.99903,2001.7,2001.6,0.00750375]
[1743025250880,3.03283,2001.7,2001.6,0.00750375]
[1743025251977,1.326,2001.7,2001.6,1.00658375]
[1743025252178,0.00750375,2002.1,2002.0,0.99888]
[1743025252379,0.00750375,2002.1,2002.0,4.20668]
[1743025252585,0.00750375,2002.1,2002.0,8.12578]
[1743025252788,0.00750375,2002.1,2002.0,46.42578]
[1743025253386,0.00750375,2002.1,2002.0,48.92578]
[1743025254989,3.75e-06,2002.1,2002.0,48.92578]
[1743025256587,1.4036,2002.8,2002.7,0.99853]
[1743025256788,0.721,2002.8,2002.7,0.99853]
[1743025257086,1.3998,2002.9,2002.8,0.99848]
[1743025257288,0.99834,2003.1,2003.0,0.99838]
[1743025257579,1.3998,2003.1,2003.0,0.99838]
[1743025257983,1.3998,2003.1,2003.0,2.43838]
[1743025258385,1.6966,2003.4,2003.3,0.99823]
[1743025259086,0.9983,2003.3,2003.2,0.99824]
[1743025259681,0.99828,2003.2,2003.1,2.3898]
[1743025262792,2.37257,2003.3,2003.2,0.99828]
[1743025263089,2.37257,2003.3,2003.2,2.35138]
[1743025263284,2.37257,2003.3,2003.2,1.3531]
[1743025263490,0.99838,2003.1,2003.0,0.99832]
[1743025265295,0.99838,2003.0,2002.9,2.35149]
[1743025266184,0.99838,2003.0,2002.9,5.98849]
[1743025267895,2.49569,2003.3,2002.9,4.9901]
[1743025268196,0.99838,2003.1,2003.0,0.99833]
[1743025268489,0.99838,2003.1,2003.0,1.349]
[1743025268694,2.36698,2003.1,2003.0,1.349]
[1743025268888,2.36698,2003.1,2003.0,2.34738]
[1743025269395,2.36698,2003.1,2003.0,1.349]
[1743025270585,2.36698,2003.1,2002.9,4.20621]
[1743025270792,0.99838,2003.0,2002.9,3.2078]
[1743025270992,2.35128,2003.0,2002.9,3.2078]
[1743025271494,2.35128,2003.0,2002.9,4.20623]
[1743025271696,0.99843,2002.9,2002.8,0.00750375]
[1743025271893,3.06313,2002.9,2002.8,0.00750375]
[1743025276295,4.5647,2002.9,2002.2,0.99875]
[1743025276500,0.99883,2002.1,2002.0,45.00666]
[1743025276698,0.99883,2002.1,2002.0,43.15388]
[1743025276895,0.99883,2002.1,2002.0,42.155]
[1743025277197,0.99883,2002.1,2002.0,40.8]
[1743025277501,0.99888,2002.0,2001.9,2.35388]
[1743025277908,0.99888,2002.0,2001.9,43.15388]
[1743025279001,0.99886,2002.1,2002.0,0.99885]
[1743025279196,0.99886,2002.1,2002.0,2.35385]
[1743025279402,0.99886,2002.1,2002.0,1.355]
[1743025279705,0.99888,2002.0,2001.9,41.7989]
[1743025279902,2.44238,2002.0,2001.9,43.2037]
[1743025280802,2.44238,2002.0,2001.9,42.2048]
[1743025284395,2.44238,2002.0,2001.9,1.4048]
[1743025285103,4.20659,2002.2,2002.1,0.99883]
[1743025285600,4.20659,2002.2,2002.1,41.79883]
[1743025285901,4.20659,2002.2,2002.1,43.22963]
[1743025286105,4.20659,2002.2,2002.1,42.2308]
[1743025286604,4.20658,2002.2,2002.1,43.22963]
[1743025286903,0.00750375,2002.3,2002.2,0.99878]
[1743025287206,0.00750375,2002.3,2002.2,2.42958]
[1743025288002,1.00623375,2002.3,2002.2,1.4308]
[1743025288204,1.00623375,2002.3,2002.2,2.42958]
[1743025288599,0.00750375,2002.3,2002.2,2.42958]
[1743025289810,1.00623375,2002.3,2002.2,1.4308]
[1743025290105,1.00623375,2002.3,2002.2,2.42958]
[1743025290307,1.00623375,2002.3,2002.2,1.4308]
[1743025290504,1.00623375,2002.3,2002.2,2.42958]
[1743025290907,1.00623375,2002.3,2002.2,43.22958]
[1743025292097,0.99878,2002.2,2002.1,3.2078]
[1743025292402,2.39518,2002.2,2002.1,3.2078]
[1743025292805,0.99883,2002.1,2002.0,4.60084]
[1743025292994,2.39523,2002.1,2002.0,6.03284]
[1743025293200,2.39523,2002.1,2002.0,46.83284]
[1743025293602,2.39523,2002.1,2002.0,6.03284]
[1743025294513,1.3964,2002.1,2002.0,6.03284]
[1743025295709,2.39523,2002.1,2002.0,6.03284]
[1743025297005,0.00750375,2002.3,2002.0,5.034]
[1743025297212,0.00750375,2002.3,2002.2,0.99878]
[1743025297412,0.00750375,2002.3,2002.2,2.38368]
[1743025297806,1.00623375,2002.3,2002.2,2.38368]
[1743025299015,0.00750375,2002.3,2002.2,2.38368]
[1743025301510,0.00750375,2002.3,2002.2,4.88368]
[1743025301812,2.49599,2003.0,2002.7,0.99851]
[1743025301813,0.99852,2002.8,2002.7,0.99851]
[1743025302402,1.3481,2002.9,2002.5,7.50996]
[1743025302610,2.34657,2002.9,2002.8,0.99848]
[1743025303011,0.99847,2002.9,2002.8,2.44188]
[1743025304504,1.3481,2003.0,2002.9,0.99843]
[1743025304717,0.6938,2003.1,2003.0,0.99838]
[1743025304917,1.6634,2003.2,2003.1,0.99833]
[1743025305415,1.3794,2003.3,2003.2,0.99828]
[1743025305611,0.7102,2003.4,2003.3,0.99823]
[1743025305812,3.07656,2003.5,2003.4,0.99818]
[1743025306017,1.3794,2003.5,2003.4,0.99818]
[1743025306509,1.3794,2003.5,2003.4,2.36628]
[1743025306716,0.99811,2003.6,2003.5,0.99813]
[1743025307014,0.99811,2003.6,2003.5,2.39843]
[1743025308616,3.2078,2003.8,2003.5,1.4003]
[1743025308809,5.64432,2003.8,2003.7,0.99803]
[1743025309415,1.4092,2003.9,2003.8,0.99798]
[1743025309617,2.1487,2003.9,2003.8,0.99798]
[1743025309820,3.14663,2003.9,2003.8,0.99798]
[1743025310609,2.1487,2003.9,2003.8,0.99798]
[1743025310831,2.49449,2004.2,2003.9,0.99787]
[1743025311026,2.49476,2004.0,2003.7,5.94831]
[1743025311215,2.49495,2003.8,2003.2,4.54224]
[1743025311418,0.99818,2003.4,2003.3,1.4014]
[1743025311714,0.99818,2003.4,2003.3,1.40888484]
[1743025312026,0.99818,2003.4,2003.3,0.00748484]
[1743025312323,0.99838,2003.0,2002.9,3.2078]
[1743025312717,0.99843,2002.9,2002.8,1.4014]
[1743025312916,2.32113,2002.9,2002.8,1.4014]
[1743025313223,0.99853,2002.7,2002.6,51.35155]
[1743025313419,0.99853,2002.7,2002.6,52.68043484]
[1743025313724,0.99853,2002.7,2002.6,0.00748484]
[1743025315016,0.99853,2002.7,2002.6,1.00606484]
[1743025315221,2.50342181,2003.0,2002.6,1.00606484]
[1743025315222,0.00742181,2003.0,2002.6,3.56648484]
[1743025315429,2.33645181,2003.0,2002.9,0.99843]
[1743025316428,0.99846,2002.9,2002.8,0.99843]
[1743025316629,2.31186,2002.9,2002.8,0.99843]
[1743025317220,0.99848,2002.8,2002.7,2.3199]
[1743025317425,0.99853,2002.7,2002.6,4.56504484]
[1743025317923,0.99853,2002.7,2002.6,5.93934484]
[1743025318225,2.31193,2002.7,2002.6,5.93934484]
[1743025319930,1.67398,2002.8,2002.7,0.99853]
[1743025320229,2.33864,2002.9,2002.8,0.99848]
[1743025320823,1.3402,2002.9,2002.8,0.99848]
[1743025321030,2.33863,2002.9,2002.8,0.99848]
[1743025321528,1.3402,2002.9,2002.8,0.99848]
[1743025321728,2.33863,2002.9,2002.8,0.99848]
[1743025322725,0.99843,2002.9,2002.8,0.99848]
[1743025324731,2.37494181,2003.0,2002.9,0.99843]
[1743025325134,0.99847,2002.9,2002.8,0.99844]
[1743025325332,2.31827,2002.9,2002.8,0.99844]
[1743025327434,0.99848,2002.8,2002.7,2.34128]
[1743025327639,2.31828,2002.8,2002.7,2.34128]
[1743025330038,0.99853,2002.7,2002.6,0.00748484]
[1743025330230,2.42503,2002.7,2002.6,1.00606484]
[1743025330447,2.42503,2002.7,2002.6,2.38506484]
[1743025331655,1.4265,2002.7,2002.6,2.38506484]
[1743025332653,0.99852,2002.8,2002.7,0.99853]
[1743025332859,2.37802,2002.8,2002.7,2.43143]
[1743025334554,0.00742181,2003.0,2002.9,0.99843]
[1743025334859,0.00742181,2003.0,2002.9,2.39613]
[1743025336163,0.00742181,2003.0,2002.9,43.19613]
[1743025336664,0.00742181,2003.0,2002.9,43.86623]
[1743025336960,0.99812,2003.6,2003.5,0.99813]
[1743025337159,0.99812,2003.6,2003.5,2.39583]
[1743025337160,2.43462,2003.6,2003.5,2.39583]
[1743025337856,1.4365,2003.6,2003.5,2.39583]
[1743025338048,4.91556,2003.7,2003.6,0.99808]
[1743025338456,6.32996,2003.7,2003.6,0.99808]
[1743025338651,3.2078,2003.7,2003.6,0.99808]
[1743025338853,0.99797,2003.9,2003.8,0.99798]
[1743025339154,2.41237,2003.9,2003.8,2.42418]
[1743025339563,0.99797,2003.9,2003.8,2.42418]
[1743025339861,0.9979,2004.0,2003.9,0.99788]
[1743025340054,0.9979,2004.0,2003.9,2.42408]
[1743025340255,0.99803,2003.7,2003.6,0.00748484]
[1743025340461,0.99803,2003.7,2003.6,2.32652484]
[1743025340752,0.99803,2003.7,2003.6,0.00748484]
[1743025341654,3.08083,2003.7,2003.6,0.00748484]
[1743025341863,0.99818,2003.4,2003.3,1.321]
[1743025342066,0.99835,2003.2,2003.1,0.9983]
[1743025342365,0.99833,2003.1,2003.0,2.31933]
[1743025342561,2.36123,2003.1,2003.0,2.31933]
[1743025343067,2.36123,2003.1,2002.9,56.04486]
[1743025343068,0.99838,2003.0,2002.9,51.33939]
[1743025343366,0.99843,2002.9,2002.8,0.00748484]
[1743025343569,0.99843,2002.9,2002.8,1.44598484]
[1743025343967,2.37833,2002.9,2002.8,0.00748484]
[1743025344469,0.99865,2002.5,2002.4,0.99863]
[1743025344671,0.99862,2002.6,2002.5,0.99861]
[1743025346374,0.99852,2002.8,2002.7,0.99849]
[1743025346672,1.3265,2002.9,2002.8,0.99843]
[1743025346872,2.0061,2003.0,2002.9,0.99843]
[1743025347171,3.00448,2003.0,2002.9,0.99843]
[1743025348376,0.99845,2002.9,2002.8,0.99843]
[1743025348559,1.3265,2002.9,2002.8,0.99843]
[1743025350775,2.32493,2002.9,2002.8,0.99843]
[1743025350971,0.9985,2002.8,2002.7,0.99849]
[1743025351171,0.9985,2002.8,2002.3,3.22181484]
[1743025351172,0.99866,2002.5,2002.3,3.93288484]
[1743025351469,0.99866,2002.5,2002.4,1.3516]
[1743025351869,0.99866,2002.5,2002.4,2.35025]
[1743025352173,0.99861,2002.6,2002.5,0.99859]
[1743025352373,2.39411,2002.6,2002.5,0.99859]
[1743025361871,0.99861,2002.6,2002.5,0.99859]
[1743025365983,0.99861,2002.6,2002.5,2.36949]
[1743025366287,0.99868,2002.4,2002.3,1.00618484]
[1743025366483,0.99868,2002.4,2002.3,2.37708484]
[1743025370185,2.30408,2002.4,2002.3,2.37708484]
[1743025374581,0.99868,2002.4,2002.3,2.37708484]
[1743025375982,2.34858,2002.4,2002.3,2.37708484]
[1743025376476,0.6979,2002.5,2002.4,0.99868]
[1743025376676,0.00748484,2003.3,2002.8,0.99848]
[1743025376677,20.51046356,2003.1,2002.8,0.99848]
[1743025376880,20.51046356,2003.1,2003.0,4.20618]
[1743025377277,20.51046356,2003.1,2003.0,7.65118]
[1743025377480,20.51046356,2003.1,2003.0,9.04808]
[1743025379790,1.00575484,2003.3,2003.2,0.99828]
[1743025382692,0.00748484,2003.3,2003.2,0.99828]
[1743025383004,1.00571484,2003.3,2003.2,0.99828]
[1743025387697,0.00748484,2003.3,2003.2,0.99828]
[1743025388900,1.00571484,2003.3,2003.2,0.99828]
[1743025389400,0.00748484,2003.3,2003.2,0.99828]
[1743025389702,1.00571484,2003.3,2003.2,0.99828]
[1743025391700,0.00748484,2003.3,2003.2,0.99828]
[1743025391993,1.00571484,2003.3,2003.2,0.99828]
[1743025392394,0.00748484,2003.3,2003.2,0.99828]
[1743025392996,0.00748484,2003.3,2003.2,41.79828]
[1743025393793,0.00748484,2003.3,2003.2,44.29828]
[1743025393997,0.6719,2003.8,2003.7,0.99803]
[1743025394203,22.92140356,2003.9,2003.8,0.99798]
[1743025394394,21.92346356,2003.9,2003.8,0.99798]
[1743025394796,20.51046356,2003.9,2003.8,0.99798]
[1743025396207,21.91516356,2003.9,2003.8,0.99798]
[1743025396905,1.4047,2003.9,2003.8,0.99798]
[1743025397508,1.4047,2003.9,2003.8,0.99798]
[1743025399307,2.40263,2003.9,2003.8,0.99798]
[1743025399712,1.4047,2003.9,2003.8,0.99798]
[1743025400401,1.4047,2003.9,2003.8,4.20578]
[1743025401304,1.72824484,2004.1,2003.8,6.5958]
[1743025401607,3.15324484,2004.1,2004.0,0.99788]
[1743025403805,0.99793,2004.0,2003.9,0.99789]
[1743025404111,2.42293,2004.0,2003.9,0.99789]
[1743025404312,2.42293,2004.0,2003.9,2.38119]
[1743025404812,2.42293,2004.0,2003.9,1.3833]
[1743025405516,2.42293,2004.0,2003.9,2.38123]
[1743025412106,2.42293,2004.0,2003.9,1.3833]
[1743025412302,0.99803,2003.8,2003.7,0.99799]
[1743025412712,0.99803,2003.7,2003.6,1.32658484]
[1743025412917,1.69873,2003.7,2003.6,2.32466484]
[1743025413603,1.69873,2003.7,2003.6,1.00556484]
[1743025413814,2.38643,2003.7,2003.6,1.00556484]
[1743025415203,2.38643,2003.7,2003.6,0.00748484]
[1743025416724,2.38643,2003.7,2003.6,1.00556484]
[1743025416922,2.38643,2003.7,2003.6,0.00748484]
[1743025418112,3.77943,2003.7,2003.6,0.00748484]
[1743025420325,3.77943,2003.7,2003.6,1.00556484]
[1743025420815,3.77943,2003.7,2003.6,0.00748484]
[1743025421814,3.77943,2003.7,2003.6,1.00556484]
[1743025425219,0.99801,2003.8,2003.7,0.99798]
[1743025425420,0.99791,2004.0,2003.8,0.99798]
[1743025425721,2.36701,2004.0,2003.9,2.42413]
[1743025425927,1.78933878,2004.1,2004.0,0.99788]
[1743025426123,1.66644484,2004.1,2004.0,2.37898]
[1743025426329,0.00748484,2004.1,2004.0,2.37898]
[1743025430225,1.00531484,2004.1,2004.0,2.37898]
[1743025430726,0.00748484,2004.1,2004.0,2.37898]
[1743025431319,0.00748484,2004.1,2004.0,3.04028]
[1743025438031,20.51046356,2004.8,2004.7,0.99753]
[1743025438227,21.50797356,2004.8,2004.7,0.99753]
[1743025438637,0.99758,2004.7,2004.6,0.99755]
[1743025439548,2.39948,2004.7,2004.6,0.99755]
[1743025440052,0.99758,2004.7,2004.6,0.99755]
[1743025440251,22.90985356,2004.8,2004.7,0.99753]
[1743025440447,0.99758,2004.6,2004.5,47.11981]
[1743025440651,20.51046356,2004.8,2004.7,0.99753]
[1743025441044,20.51046356,2004.8,2004.7,41.79753]
[1743025441547,20.51046356,2004.8,2004.7,40.8]
[1743025441548,0.99748,2004.8,2004.7,40.8]
[1743025442053,0.99753,2004.7,2004.6,0.99754]
[1743025442346,2.43923,2004.7,2004.6,0.99754]
[1743025442548,2.43923,2004.7,2004.6,1.3927]